bitfinex-derivatives/quotes_BTCF0:USTF0_20230701
["timestamp","ask_amount","ask_price","bid_price","bid_amount"]
[1688245331558,0.5160981,30618.0,30617.0,0.30197714]
[1688245331744,0.5160981,30618.0,30617.0,0.66277714]
[1688245337571,0.5160981,30618.0,30617.0,0.30197714]
[1688245337751,0.5160981,30618.0,30617.0,0.66277714]
[1688245342057,0.5160981,30618.0,30617.0,0.30197714]
[1688245342553,0.5160981,30618.0,30617.0,0.66277714]
[1688245344062,0.5160981,30618.0,30617.0,0.30197714]
[1688245344262,0.5160981,30618.0,30617.0,0.66277714]
[1688245344451,0.5160981,30618.0,30617.0,0.30197714]
[1688245344651,0.5160981,30618.0,30617.0,0.66277714]
[1688245346367,0.5160981,30618.0,30617.0,0.64392769]
[1688245350268,0.5160981,30618.0,30617.0,0.28312769]
[1688245350462,0.5160981,30618.0,30617.0,0.66277714]
[1688245350661,0.5160981,30618.0,30617.0,0.30197714]
[1688245350864,0.5160981,30618.0,30617.0,0.66277714]
[1688245351776,0.5160981,30618.0,30617.0,0.30197714]
[1688245351972,0.5160981,30618.0,30617.0,0.66277714]
[1688245358488,0.5160981,30618.0,30617.0,0.30197714]
[1688245358690,0.5160981,30618.0,30617.0,0.66277714]
[1688245359594,0.5160981,30618.0,30617.0,0.30197714]
[1688245359890,0.7634981,30618.0,30617.0,0.66277714]
[1688245361390,0.7634981,30618.0,30617.0,0.30197714]
[1688245361590,0.7634981,30618.0,30617.0,0.66277714]
[1688245363383,0.7016851,30618.0,30617.0,0.66277714]
[1688245363781,0.72807115,30618.0,30617.0,0.66277714]
[1688245366187,0.72807115,30618.0,30617.0,0.625698]
[1688245366694,0.72807115,30618.0,30617.0,0.64392769]
[1688245368998,0.72807115,30618.0,30617.0,0.66277714]
[1688245369691,0.72807115,30618.0,30617.0,0.30197714]
[1688245369887,0.72807115,30618.0,30617.0,0.66277714]
[1688245373999,0.72627115,30618.0,30617.0,0.66277714]
[1688245375994,0.72627115,30618.0,30617.0,0.66271193]
[1688245376504,0.72627115,30618.0,30617.0,0.64386248]
[1688245377501,0.72627115,30618.0,30617.0,0.66271193]
[1688245377801,0.72627115,30618.0,30617.0,0.64386248]
[1688245379107,0.72627115,30618.0,30617.0,0.28306248]
[1688245379305,0.72627115,30618.0,30617.0,0.62563279]
[1688245379503,0.72627115,30618.0,30617.0,0.64386248]
[1688245380201,0.72627115,30618.0,30617.0,0.66271193]
[1688245380802,0.72627115,30618.0,30617.0,0.30191193]
[1688245381110,0.72627115,30618.0,30617.0,0.66271193]
[1688245381503,0.72627115,30618.0,30617.0,0.64448224]
[1688245382511,0.72627115,30618.0,30617.0,0.66271193]
[1688245385508,0.72627115,30618.0,30617.0,0.64448224]
[1688245387011,0.72627115,30618.0,30617.0,0.28368224]
[1688245387315,0.72627115,30618.0,30617.0,0.64448224]
[1688245387907,0.72627115,30618.0,30617.0,0.66271193]
[1688245389916,0.72627115,30618.0,30617.0,0.64658224]
[1688245390101,0.72627115,30618.0,30617.0,0.66481193]
[1688245394223,0.72627115,30618.0,30617.0,0.64658224]
[1688245394415,0.72627115,30618.0,30617.0,0.66481193]
[1688245394621,0.72627115,30618.0,30617.0,0.30401193]
[1688245394921,0.72627115,30618.0,30617.0,0.66481193]
[1688245396908,0.72627115,30618.0,30617.0,0.30401193]
[1688245397115,0.72807115,30618.0,30617.0,0.41741193]
[1688245397821,0.72807115,30618.0,30617.0,0.05661193]
[1688245398021,0.72807115,30618.0,30617.0,0.41741193]
[1688245398923,0.72807115,30618.0,30617.0,0.05661193]
[1688245399116,0.72807115,30618.0,30617.0,0.41741193]
[1688245400314,0.72807115,30618.0,30617.0,0.41735193]
[1688245400517,0.79263694,30618.0,30617.0,0.41735193]
[1688245401825,0.79263694,30618.0,30617.0,0.05655193]
[1688245402019,0.79263694,30618.0,30617.0,0.39912224]
[1688245403432,0.79263694,30618.0,30617.0,0.41735193]
[1688245404930,0.79263694,30618.0,30617.0,0.05655193]
[1688245405135,0.79263694,30618.0,30617.0,0.41735193]
[1688245406231,0.72807115,30618.0,30617.0,0.41735193]
[1688245408920,0.70307115,30618.0,30617.0,0.41735193]
[1688245412733,0.70307115,30618.0,30617.0,0.05655193]
[1688245413132,0.70307115,30618.0,30617.0,0.41735193]
[1688245415822,0.70307115,30618.0,30617.0,0.05655193]
[1688245416031,0.70307115,30618.0,30617.0,0.39912224]
[1688245416435,0.70307115,30618.0,30617.0,0.41735193]
[1688245417036,0.76785927,30618.0,30617.0,0.05655193]
[1688245417229,0.76785927,30618.0,30617.0,0.41735193]
[1688245418328,0.76785927,30618.0,30617.0,0.05655193]
[1688245418529,0.76785927,30618.0,30617.0,0.41735193]
[1688245423633,0.70307115,30618.0,30617.0,0.39850248]
[1688245424046,0.70307115,30618.0,30617.0,0.39836282]
[1688245424243,0.70307115,30618.0,30617.0,0.03756282]
[1688245424445,0.70307115,30618.0,30617.0,0.39836282]
[1688245425247,0.70307115,30618.0,30617.0,0.38013313]
[1688245426545,0.70307115,30618.0,30617.0,0.39836282]
[1688245428648,0.70307115,30618.0,30617.0,0.41721227]
[1688245430445,0.70307115,30618.0,30617.0,0.38013313]
[1688245431041,0.70307115,30618.0,30617.0,0.01933313]
[1688245431235,0.70307115,30618.0,30617.0,0.38013313]
[1688245434051,0.70283714,30618.0,30617.0,0.38013313]
[1688245435154,0.70283714,30618.0,30617.0,0.01933313]
[1688245435542,0.70283714,30618.0,30617.0,0.38013313]
[1688245437558,0.70283714,30618.0,30617.0,0.01933313]
[1688245437853,0.70283714,30618.0,30617.0,0.38013313]
[1688245438054,0.70283714,30618.0,30617.0,0.01933313]
[1688245438255,0.70283714,30618.0,30617.0,0.38013313]
[1688245439958,0.70283714,30618.0,30617.0,0.39836282]
[1688245440162,0.70283714,30618.0,30617.0,0.38013313]
[1688245440656,0.70283714,30618.0,30617.0,0.01933313]
[1688245440857,0.70283714,30618.0,30617.0,0.38013313]
[1688245441455,0.70283714,30618.0,30617.0,0.01933313]
[1688245441656,0.70283714,30618.0,30617.0,0.38013313]
[1688245442648,0.70283714,30618.0,30617.0,0.01933313]
[1688245443061,0.70283714,30618.0,30617.0,0.38013313]
[1688245444055,0.70203714,30618.0,30617.0,0.38013313]
[1688245445758,0.70203714,30618.0,30617.0,0.01933313]
[1688245445959,0.70203714,30618.0,30617.0,0.38013313]
[1688245446955,0.70203714,30618.0,30617.0,0.37994288]
[1688245447656,0.70203714,30618.0,30617.0,0.01914288]
[1688245447959,0.70203714,30618.0,30617.0,0.37994288]
[1688245449859,0.70203714,30618.0,30617.0,0.01914288]
[1688245450061,0.70203714,30618.0,30617.0,0.37994288]
[1688245458568,0.70203714,30618.0,30617.0,0.01914288]
[1688245458755,0.70203714,30618.0,30617.0,0.37994288]
[1688245465465,0.70203714,30618.0,30617.0,0.01914288]
[1688245465668,0.70203714,30618.0,30617.0,0.37994288]
[1688245467073,0.70203714,30618.0,30617.0,0.01914288]
[1688245467378,0.70203714,30618.0,30617.0,0.37994288]
[1688245470975,0.70186381,30618.0,30617.0,0.37994288]
[1688245471676,0.70186381,30618.0,30617.0,0.01914288]
[1688245471871,0.70186381,30618.0,30617.0,0.37994288]
[1688245472075,0.70186381,30618.0,30617.0,0.01914288]
[1688245472269,0.70186381,30618.0,30617.0,0.37994288]
[1688245473177,0.70186381,30618.0,30617.0,0.01914288]
[1688245473377,0.70186381,30618.0,30617.0,0.37994288]
[1688245474679,0.70186381,30618.0,30617.0,0.43433839]
[1688245475478,0.70186381,30618.0,30617.0,0.39817257]
[1688245475677,0.70186381,30618.0,30617.0,0.41702202]
[1688245476276,0.70186381,30618.0,30617.0,0.05622202]
[1688245476479,0.70186381,30618.0,30617.0,0.37994288]
[1688245477579,0.70186381,30618.0,30617.0,0.01914288]
[1688245477779,0.70186381,30618.0,30617.0,0.37994288]
[1688245479577,0.70186381,30618.0,30617.0,0.01914288]
[1688245479770,0.70186381,30618.0,30617.0,0.37994288]
[1688245479971,0.70186381,30618.0,30617.0,0.39817257]
[1688245480880,0.70186381,30618.0,30617.0,0.37994288]
[1688245481974,0.70186381,30618.0,30617.0,0.39817257]
[1688245482190,0.70186381,30618.0,30617.0,0.03737257]
[1688245482384,0.70186381,30618.0,30617.0,0.37994288]
[1688245484286,0.70186381,30618.0,30617.0,0.37982936]
[1688245485488,0.70186381,30618.0,30617.0,0.01902936]
[1688245485678,0.70186381,30618.0,30617.0,0.37982936]
[1688245487189,0.70186381,30618.0,30617.0,0.01902936]
[1688245487687,0.70186381,30618.0,30617.0,0.37982936]
[1688245488279,0.70186381,30618.0,30617.0,0.01902936]
[1688245488474,0.70186381,30618.0,30617.0,0.37982936]
[1688245489193,0.70186381,30618.0,30617.0,0.01902936]
[1688245489486,0.70186381,30618.0,30617.0,0.37982936]
[1688245490290,0.12372085,30620.0,30617.0,0.37982936]
[1688245490490,0.73639072,30618.0,30617.0,0.37982936]
[1688245490688,0.2454,30618.0,30617.0,0.37982936]
[1688245490892,0.73776628,30618.0,30617.0,0.4169085]
[1688245494092,0.73976628,30618.0,30617.0,0.4169085]
[1688245495397,0.73976628,30618.0,30617.0,0.0561085]
[1688245495595,0.73976628,30618.0,30617.0,0.4169085]
[1688245496997,0.73976628,30618.0,30617.0,0.0561085]
[1688245497197,0.73976628,30618.0,30617.0,0.4169085]
[1688245499103,0.73976628,30618.0,30617.0,0.0561085]
[1688245499304,0.73976628,30618.0,30617.0,0.4169085]
[1688245501295,0.73776628,30618.0,30617.0,0.4169085]
[1688245505092,0.73776628,30618.0,30617.0,0.37960956]
[1688245505292,0.73776628,30618.0,30617.0,0.39783925]
[1688245505802,0.73776628,30618.0,30617.0,0.4166887]
[1688245508507,0.73776628,30618.0,30617.0,0.39783925]
[1688245510605,0.73776628,30618.0,30617.0,0.4166887]
[1688245513306,0.73776628,30618.0,30617.0,0.0558887]
[1688245513508,0.73776628,30618.0,30617.0,0.4166887]
[1688245514004,0.73776628,30618.0,30617.0,0.37960956]
[1688245516612,0.73776628,30618.0,30617.0,0.01880956]
[1688245516802,0.73776628,30618.0,30617.0,0.37960956]
[1688245517407,0.73776628,30618.0,30617.0,0.39783925]
[1688245520311,0.73776628,30618.0,30617.0,0.37960956]
[1688245523410,0.73776628,30618.0,30617.0,0.39783925]
[1688245524415,0.73776628,30618.0,30617.0,0.37960956]
[1688245524712,0.73776628,30618.0,30617.0,0.39783925]
[1688245525211,0.73776628,30618.0,30617.0,0.37960956]
[1688245525414,0.73776628,30618.0,30617.0,0.39783925]
[1688245525913,0.73776628,30618.0,30617.0,0.37960956]
[1688245530311,0.73776628,30618.0,30617.0,0.01880956]
[1688245530512,0.73776628,30618.0,30617.0,0.37960956]
[1688245532314,0.73818768,30618.0,30617.0,0.37960956]
[1688245532520,0.73818768,30618.0,30617.0,0.39783925]
[1688245533414,0.73818768,30618.0,30617.0,0.37960956]
[1688245533615,0.73818768,30618.0,30617.0,0.39783925]
[1688245533804,0.73818768,30618.0,30617.0,0.4166887]
[1688245535918,0.73818768,30618.0,30617.0,0.37960956]
[1688245536319,0.73818768,30618.0,30617.0,0.39845901]
[1688245536818,0.73818768,30618.0,30617.0,0.4166887]
[1688245538517,0.73818768,30618.0,30617.0,0.37960956]
[1688245540228,0.73818768,30618.0,30617.0,0.39783925]
[1688245541421,0.73818768,30618.0,30617.0,0.37960956]
[1688245541822,0.73818768,30618.0,30617.0,0.39783925]
[1688245544823,0.73818768,30618.0,30617.0,0.37960956]
[1688245548829,0.73818768,30618.0,30617.0,0.01880956]
[1688245549123,0.73818768,30618.0,30617.0,0.37960956]
[1688245563153,0.75778468,30618.0,30615.0,0.048997]
[1688245563351,0.2474,30616.0,30613.0,0.019598]
[1688245563650,0.2474,30614.0,30613.0,0.019598]
[1688245563955,0.513899,30614.0,30613.0,0.019598]
[1688245564251,0.5143172,30614.0,30613.0,0.019598]
[1688245564959,0.2474182,30614.0,30613.0,0.019598]
[1688245565140,0.27086826,30615.0,30613.0,0.019598]
[1688245565854,0.019599,30614.0,30613.0,0.019598]
[1688245566060,0.51316131,30614.0,30613.0,0.019598]
[1688245566355,0.24786231,30614.0,30613.0,0.019598]
[1688245566746,0.019599,30614.0,30613.0,0.019598]
[1688245567152,0.01331372,30614.0,30613.0,0.019598]
[1688245571358,0.50631372,30614.0,30613.0,0.019598]
[1688245575360,0.50631372,30614.0,30613.0,0.0195314]
[1688245583768,0.50631372,30614.0,30612.0,0.375002]
[1688245584068,0.267,30613.0,30612.0,0.375002]
[1688245584565,0.30328834,30613.0,30612.0,0.375002]
[1688245585065,0.267,30613.0,30612.0,0.375002]
[1688245585364,0.30328834,30613.0,30612.0,0.375002]
[1688245585757,0.30328834,30613.0,30612.0,0.345601]
[1688245588968,0.267,30613.0,30612.0,0.345601]
[1688245589569,0.267,30613.0,30612.0,0.34540132]
[1688245594770,0.33232805,30613.0,30612.0,0.32580032]
[1688245594973,0.33232805,30613.0,30612.0,0.34540132]
[1688245599276,0.31272805,30613.0,30612.0,0.34540132]
[1688245600177,0.33232805,30613.0,30612.0,0.34540132]
[1688245602271,0.31272805,30613.0,30612.0,0.34540132]
[1688245603770,0.33232805,30613.0,30612.0,0.34540132]
[1688245604783,0.31272805,30613.0,30612.0,0.34540132]
[1688245606686,0.33232805,30613.0,30612.0,0.34540132]
[1688245608087,0.33232805,30613.0,30612.0,0.34546132]
[1688245611193,0.31272805,30613.0,30612.0,0.34546132]
[1688245614192,0.33232705,30613.0,30612.0,0.34546132]
[1688245620991,0.33232705,30613.0,30612.0,0.019661]
[1688245621193,0.98992705,30613.0,30607.0,0.369008]
[1688245621397,0.2456,30608.0,30607.0,0.019603]
[1688245621597,0.30143133,30608.0,30607.0,0.338903]
[1688245622194,0.30143133,30608.0,30607.0,0.3193]
[1688245622596,0.29154554,30608.0,30607.0,0.3193]
[1688245622795,0.29154554,30608.0,30607.0,0.338903]
[1688245622796,0.25531721,30608.0,30607.0,0.338903]
[1688245624293,0.23571421,30608.0,30607.0,0.338903]
[1688245624500,0.23571421,30608.0,30607.0,0.584203]
[1688245625094,0.23571421,30608.0,30607.0,0.96323269]
[1688245625501,0.23571421,30608.0,30607.0,0.945003]
[1688245625694,0.23571421,30608.0,30607.0,0.96323269]
[1688245626085,0.23571421,30608.0,30607.0,0.945003]
[1688245627398,0.25531721,30608.0,30607.0,0.945003]
[1688245627993,0.25531721,30608.0,30607.0,0.944883]
[1688245628191,0.25531721,30608.0,30607.0,0.584083]
[1688245630608,0.28141912,30608.0,30607.0,0.944883]
[1688245632189,0.28141912,30608.0,30607.0,0.584083]
[1688245634003,0.28141912,30608.0,30607.0,0.338783]
[1688245635595,0.28141912,30608.0,30607.0,0.34971156]
[1688245638802,0.28141912,30608.0,30607.0,0.01092856]
[1688245639897,0.28141912,30608.0,30607.0,0.03053156]
[1688245640097,0.28141912,30608.0,30607.0,0.01092856]
[1688245640296,0.28141912,30608.0,30607.0,0.34192856]
[1688245641110,0.28141912,30608.0,30607.0,0.36153156]
[1688245648310,0.28141912,30608.0,30607.0,0.34192856]
[1688245649017,0.28141912,30608.0,30607.0,0.36153156]
[1688245662219,0.28141912,30608.0,30607.0,0.37976125]
[1688245663114,0.28141912,30608.0,30607.0,0.36153156]
[1688245664714,0.28141912,30608.0,30607.0,0.37976125]
[1688245665821,0.28141912,30608.0,30607.0,0.36153156]
[1688245666728,0.28141912,30608.0,30607.0,0.34192856]
[1688245668919,0.28141912,30608.0,30607.0,0.34198856]
[1688245670426,0.28141912,30608.0,30607.0,0.341922]
[1688245680450,0.28141912,30608.0,30607.0,0.361525]
[1688245682862,0.28141912,30608.0,30607.0,0.36143846]
[1688245687455,0.28141912,30608.0,30607.0,0.37966815]
[1688245687663,0.28141912,30608.0,30607.0,0.36143846]
[1688245689460,0.28141912,30608.0,30607.0,0.37966815]
[1688245690056,0.28141912,30608.0,30607.0,0.3985176]
[1688245690255,0.26181612,30608.0,30607.0,0.3985176]
[1688245691263,0.13815344,30608.0,30607.0,0.3985176]
[1688245691657,0.34092296,30609.0,30607.0,0.3985176]
[1688245691864,0.2411,30608.0,30607.0,0.36143846]
[1688245692362,0.2411,30608.0,30607.0,0.3985176]
[1688245693169,0.260703,30608.0,30607.0,0.37966815]
[1688245694772,0.260703,30608.0,30607.0,0.3985176]
[1688245696572,0.260703,30608.0,30607.0,0.37966815]
[1688245700172,0.260703,30608.0,30607.0,0.36143846]
[1688245700470,0.260703,30608.0,30607.0,0.37966815]
[1688245704474,0.260703,30608.0,30607.0,0.37953281]
[1688245706773,0.260703,30608.0,30607.0,0.39838226]
[1688245710680,0.260703,30608.0,30607.0,0.37953281]
[1688245710867,0.260703,30608.0,30607.0,0.36130312]
[1688245712672,0.260703,30608.0,30607.0,0.37953281]
[1688245716888,0.260703,30608.0,30607.0,0.39838226]
[1688245718189,0.260703,30608.0,30607.0,0.39817847]
[1688245718390,0.260703,30608.0,30607.0,0.37932902]
[1688245719081,0.260703,30608.0,30607.0,0.39817847]
[1688245719992,0.260703,30608.0,30607.0,0.37994878]
[1688245721494,0.260703,30608.0,30607.0,0.39817847]
[1688245721685,0.260703,30608.0,30607.0,0.37994878]
[1688245722197,0.260703,30608.0,30607.0,0.39817847]
[1688245723097,0.260703,30608.0,30607.0,0.37994878]
[1688245723296,0.260703,30608.0,30607.0,0.39817847]
[1688245724899,0.260703,30608.0,30607.0,0.37994878]
[1688245725097,0.260703,30608.0,30607.0,0.39817847]
[1688245726201,0.260703,30608.0,30607.0,0.37994878]
[1688245726401,0.260703,30608.0,30607.0,0.39817847]
[1688245726703,0.260703,30608.0,30607.0,0.37994878]
[1688245727695,0.260703,30608.0,30607.0,0.39817847]
[1688245729200,0.260703,30608.0,30607.0,0.39811847]
[1688245729397,0.260703,30608.0,30607.0,0.37988878]
[1688245729597,0.260703,30608.0,30607.0,0.37994878]
[1688245730001,0.260703,30608.0,30607.0,0.36109933]
[1688245730697,0.260703,30608.0,30607.0,0.36089802]
[1688245734803,0.260703,30608.0,30607.0,0.37912771]
[1688245735206,0.260703,30608.0,30607.0,0.36089802]
[1688245737310,0.260703,30608.0,30607.0,0.37912771]
[1688245740313,0.260703,30608.0,30607.0,0.36089802]
[1688245743217,0.260703,30608.0,30607.0,0.36073845]
[1688245745310,0.260703,30608.0,30607.0,0.01013545]
[1688245746008,0.260703,30608.0,30606.0,0.3608]
[1688245746009,0.621503,30608.0,30605.0,0.321904]
[1688245746318,0.380403,30608.0,30606.0,0.00821685]
[1688245746613,0.2474,30607.0,30606.0,0.00821685]
[1688245746816,0.267003,30607.0,30606.0,0.00821685]
[1688245748219,0.267003,30607.0,30606.0,0.02782085]
[1688245749714,0.58834513,30607.0,30606.0,0.02782085]
[1688245755123,0.58834513,30607.0,30606.0,0.02775425]
[1688245761438,0.56874213,30607.0,30606.0,0.02775425]
[1688245761925,0.56874213,30607.0,30606.0,0.32755425]
[1688245763214,0.2474,30607.0,30606.0,0.32755425]
[1688245764224,0.24717477,30607.0,30606.0,0.34578394]
[1688245764727,0.24717477,30607.0,30606.0,0.32755425]
[1688245775436,0.24717477,30607.0,30606.0,0.34578394]
[1688245775637,0.24717477,30607.0,30606.0,0.32755425]
[1688245778537,0.24717477,30607.0,30606.0,0.32746426]
[1688245782234,0.24717477,30607.0,30606.0,0.34569395]
[1688245782436,0.24717477,30607.0,30606.0,0.34631371]
[1688245783849,0.24717477,30607.0,30606.0,0.32746426]
[1688245785541,0.24717477,30607.0,30606.0,0.34569395]
[1688245785744,0.24717477,30607.0,30606.0,0.3645434]
[1688245785745,0.2366248,30607.0,30606.0,0.3645434]
[1688245786137,0.2366248,30607.0,30606.0,0.3710434]
[1688245786441,0.02622168,30609.0,30606.0,0.6184434]
[1688245786646,0.2466,30609.0,30608.0,0.627203]
[1688245786842,0.2466,30609.0,30608.0,0.63527675]
[1688245787036,0.73455089,30609.0,30608.0,0.63527675]
[1688245787238,0.73455089,30609.0,30608.0,0.67235589]
[1688245789941,0.73455089,30609.0,30608.0,0.63527675]
[1688245790353,0.73455089,30609.0,30608.0,0.65350644]
[1688245792649,0.73455089,30609.0,30608.0,0.67235589]
[1688245794151,0.73335089,30609.0,30608.0,0.42555589]
[1688245796153,0.73335089,30609.0,30608.0,0.06475589]
[1688245796458,0.73335089,30609.0,30608.0,0.42555589]
[1688245800063,0.73321769,30609.0,30608.0,0.42555589]
[1688245805963,0.73321769,30609.0,30608.0,0.41748214]
[1688245809663,0.73321769,30609.0,30608.0,0.05668214]
[1688245809863,0.73321769,30609.0,30608.0,0.41748214]
[1688245812867,0.73321769,30609.0,30608.0,0.05668214]
[1688245813065,0.73321769,30609.0,30608.0,0.41748214]
[1688245814071,0.73321769,30609.0,30608.0,0.05662171]
[1688245814274,0.73321769,30609.0,30608.0,0.38034257]
[1688245815578,0.73321769,30609.0,30608.0,0.39857226]
[1688245815878,0.73321769,30609.0,30608.0,0.38034257]
[1688245816266,0.73321769,30609.0,30608.0,0.39919202]
[1688245816971,0.73321769,30609.0,30608.0,0.41742171]
[1688245820871,0.48781769,30609.0,30608.0,0.66272171]
[1688245825586,0.57231241,30609.0,30608.0,0.66272171]
[1688245827976,0.43341241,30609.0,30608.0,0.66272171]
[1688245828187,0.02640367,30610.0,30608.0,0.71272171]
[1688245828373,0.02640367,30610.0,30609.0,0.64527914]
[1688245828577,0.00049008,30611.0,30609.0,0.66488114]
[1688245828876,0.00049008,30611.0,30610.0,0.28447914]
[1688245829084,0.00049008,30611.0,30610.0,0.30408014]
[1688245831988,0.00049008,30611.0,30610.0,0.63528014]
[1688245832185,0.00411428,30611.0,30610.0,0.63528014]
[1688245832387,0.00452648,30611.0,30610.0,0.63528014]
[1688245834987,0.00445675,30611.0,30610.0,0.63528014]
[1688245836776,0.00445675,30611.0,30610.0,1.35688014]
[1688245839883,0.00445675,30611.0,30610.0,0.63528014]
[1688245840084,0.00445675,30611.0,30610.0,1.35688014]
[1688245840283,0.00445675,30611.0,30610.0,0.63528014]
[1688245840483,0.00445675,30611.0,30610.0,1.35688014]
[1688245843685,0.00445675,30611.0,30610.0,0.63528014]
[1688245843880,0.00445675,30611.0,30610.0,1.35688014]
[1688245844287,0.00042035,30611.0,30610.0,1.35688014]
[1688245844586,0.00401318,30611.0,30610.0,1.35688014]
[1688245844784,0.00042035,30611.0,30610.0,1.35688014]
[1688245844988,0.00401347,30611.0,30610.0,1.35688014]
[1688245845197,0.00442567,30611.0,30610.0,1.35688014]
[1688245851396,0.00436567,30611.0,30610.0,1.35688014]
[1688245855290,0.00436567,30611.0,30610.0,0.99608014]
[1688245863089,0.00436567,30611.0,30610.0,0.63528014]
[1688245863289,0.00436567,30611.0,30610.0,0.99608014]
[1688245866607,0.00436567,30611.0,30610.0,0.63528014]
[1688245866795,0.00436567,30611.0,30610.0,0.99608014]
[1688245867196,0.08884988,30611.0,30610.0,0.99608014]
[1688245870803,0.08884988,30611.0,30610.0,1.35688014]
[1688245878315,0.08884988,30611.0,30610.0,0.63528014]
[1688245878514,0.08884988,30611.0,30610.0,1.35688014]
[1688245888121,0.08884988,30611.0,30610.0,0.63528014]
[1688245888316,0.08884988,30611.0,30610.0,1.35688014]
[1688245890738,0.08884988,30611.0,30610.0,0.63528014]
[1688245891236,0.08884988,30611.0,30610.0,1.35688014]
[1688245901241,0.08884988,30611.0,30610.0,0.63528014]
[1688245901437,0.08884988,30611.0,30610.0,1.35688014]
[1688245901933,0.08884988,30611.0,30610.0,0.63528014]
[1688245902234,0.08884988,30611.0,30610.0,1.35688014]
[1688245902436,0.08884988,30611.0,30610.0,0.63528014]
[1688245902640,0.08884988,30611.0,30610.0,1.35688014]
[1688245904431,0.08863624,30611.0,30610.0,1.35688014]
[1688245905436,0.08904722,30611.0,30610.0,1.35688014]
[1688245911949,0.08898722,30611.0,30610.0,1.35688014]
[1688245912150,0.08898722,30611.0,30610.0,1.319801]
[1688245912346,0.08898722,30611.0,30610.0,1.35688014]
[1688245920251,0.08898722,30611.0,30610.0,1.319801]
[1688245920954,0.08898722,30611.0,30610.0,1.35688014]
[1688245928766,0.08898722,30611.0,30610.0,0.63528014]
[1688245929063,0.08898722,30611.0,30610.0,1.35688014]
[1688245929450,0.08898722,30611.0,30610.0,0.63528014]
[1688245929649,0.08898722,30611.0,30610.0,1.35688014]
[1688245930060,0.08898722,30611.0,30610.0,0.63528014]
[1688245930255,0.08898722,30611.0,30610.0,1.35688014]
[1688245935164,0.08898722,30611.0,30610.0,0.63528014]
[1688245935366,0.08898722,30611.0,30610.0,1.35688014]
[1688245939772,0.08898722,30611.0,30610.0,0.63528014]
[1688245940071,0.08898722,30611.0,30610.0,1.35688014]
[1688245941676,0.08898722,30611.0,30610.0,0.63528014]
[1688245941872,0.08898722,30611.0,30610.0,1.35688014]
[1688245948263,0.08857624,30611.0,30610.0,1.35688014]
[1688245949968,0.08857624,30611.0,30610.0,0.63528014]
[1688245950176,0.08857624,30611.0,30610.0,1.35688014]
[1688245950874,0.08857624,30611.0,30610.0,0.63528014]
[1688245951074,0.08857624,30611.0,30610.0,1.35688014]
[1688245954075,0.08857624,30611.0,30610.0,0.63528014]
[1688245954271,0.00383491,30611.0,30610.0,1.319801]
[1688245955679,0.00383491,30611.0,30610.0,1.35688014]
[1688245960080,0.00383491,30611.0,30610.0,0.63528014]
[1688245960279,0.00383491,30611.0,30610.0,1.35688014]
[1688245960983,0.00383491,30611.0,30610.0,0.63528014]
[1688245961184,0.00383491,30611.0,30610.0,1.35688014]
[1688245966491,0.00383491,30611.0,30610.0,0.63528014]
[1688245966687,0.00383491,30611.0,30610.0,1.35688014]
[1688245966883,0.00383491,30611.0,30610.0,0.63528014]
[1688245967088,0.00383491,30611.0,30610.0,1.35688014]
[1688245967488,0.00383491,30611.0,30610.0,0.63528014]
[1688245967687,0.026244,30613.0,30612.0,0.05]
[1688245967891,0.026244,30613.0,30612.0,0.3335]
[1688245967892,0.11071542,30613.0,30612.0,0.3335]
[1688245968081,0.08447142,30613.0,30612.0,0.3531]
[1688245968480,0.08447142,30613.0,30612.0,0.39017914]
[1688245972307,0.08447142,30613.0,30612.0,1.11177914]
[1688245972695,0.08447142,30613.0,30612.0,1.11183914]
[1688245980004,0.3166,30619.0,30613.0,0.03707914]
[1688245980210,0.3166,30619.0,30618.0,0.9678]
[1688245980416,0.364,30620.0,30618.0,0.987396]
[1688245980705,0.364,30620.0,30619.0,0.30407514]
[1688245981111,0.54108639,30620.0,30619.0,0.30407514]
[1688245981315,0.56678802,30620.0,30619.0,0.30407514]
[1688245984519,0.6012509,30620.0,30619.0,0.30407514]
[1688245984814,0.60125088,30620.0,30619.0,0.63197514]
[1688245985213,0.11016449,30620.0,30619.0,0.63197514]
[1688245988215,0.11016449,30620.0,30619.0,1.35357514]
[1688245997018,0.11016449,30620.0,30619.0,1.60097514]
[1688245998129,0.11987999,30620.0,30619.0,1.60097514]
[1688246003930,0.11987999,30620.0,30619.0,1.35357514]
[1688246004432,0.11016449,30620.0,30619.0,1.35357514]
[1688246004632,0.09369332,30620.0,30619.0,1.35357514]
[1688246009124,0.09369332,30620.0,30619.0,0.63197514]
[1688246009328,0.09369332,30620.0,30619.0,1.35357514]
[1688246009329,0.10488303,30620.0,30619.0,1.35357514]
[1688246009625,0.09369332,30620.0,30619.0,1.35357514]
[1688246011522,0.09369332,30620.0,30619.0,0.63197514]
[1688246011728,0.10488564,30620.0,30619.0,1.35357514]
[1688246012237,0.09369332,30620.0,30619.0,1.35357514]
[1688246018035,0.08446286,30620.0,30619.0,1.35357514]
[1688246020331,0.09566307,30620.0,30619.0,1.35357514]
[1688246023937,0.09566307,30620.0,30619.0,1.60047514]
[1688246028832,0.02675542,30622.0,30619.0,1.60047514]
[1688246029033,0.00048988,30623.0,30622.0,0.2474]
[1688246029240,0.00048988,30623.0,30622.0,0.873094]
[1688246029744,0.00048988,30623.0,30622.0,1.27097314]
[1688246029934,0.00048988,30623.0,30622.0,1.58647314]
[1688246030334,0.02697849,30623.0,30622.0,1.58647314]
[1688246030534,0.00048988,30623.0,30622.0,1.58647314]
[1688246032134,0.00048988,30623.0,30622.0,1.27097314]
[1688246036247,0.38688005,30624.0,30622.0,1.233894]
[1688246036548,0.38688005,30624.0,30623.0,0.28447914]
[1688246036750,0.38688005,30624.0,30623.0,0.66487214]
[1688246036936,0.8757918,30624.0,30623.0,0.66487214]
[1688246037337,0.56559647,30624.0,30623.0,0.66487214]
[1688246040037,0.65005087,30624.0,30623.0,0.66487214]
[1688246040236,0.3101,30626.0,30623.0,0.91227214]
[1688246040437,0.3101,30626.0,30625.0,0.607]
[1688246040741,0.3101,30626.0,30625.0,0.873892]
[1688246040742,0.08444081,30626.0,30625.0,0.873892]
[1688246040938,0.08444081,30626.0,30625.0,0.91097114]
[1688246041534,0.10698334,30626.0,30625.0,0.91097114]
[1688246042045,0.08444081,30626.0,30625.0,0.91097114]
[1688246042836,0.07638424,30628.0,30625.0,0.873892]
[1688246043047,0.07638424,30628.0,30627.0,0.8535]
[1688246043238,0.07638424,30628.0,30627.0,0.87309]
[1688246043644,0.02638424,30628.0,30627.0,0.87309]
[1688246043855,0.0003262,30629.0,30627.0,1.22126914]
[1688246044046,0.0003262,30629.0,30628.0,0.4943]
[1688246044242,0.0003262,30629.0,30628.0,0.51389]
[1688246044641,0.02322072,30629.0,30628.0,0.51389]
[1688246045051,0.02322072,30629.0,30628.0,0.55096914]
[1688246046436,0.04987171,30629.0,30628.0,0.55096914]
[1688246046639,0.01822072,30629.0,30628.0,0.55096914]
[1688246046841,0.01822072,30629.0,30628.0,1.27256914]